bitfinex/quotes_BTCUSD_20240827
["timestamp","ask_amount","ask_price","bid_price","bid_amount"]
[1724719613826,0.159474,63102.0,63098.0,0.158481]
[1724719614233,0.159474,63102.0,63099.0,0.158481]
[1724719614713,0.001,63102.0,63099.0,0.158481]
[1724719614954,0.158481,63099.0,63095.0,0.15949]
[1724719615437,0.001,63102.0,63095.0,0.001]
[1724719615642,0.02484006,63105.0,63095.0,0.001]
[1724719615830,0.316961,63100.0,63095.0,0.001]
[1724719616053,0.158485,63098.0,63095.0,0.001]
[1724719616508,0.158481,63099.0,63095.0,0.15949]
[1724719617458,0.316953,63101.0,63095.0,0.15949]
[1724719617639,0.158484,63098.0,63095.0,0.16049]
[1724719617874,0.158484,63098.0,63095.0,0.002]
[1724719618123,0.158484,63098.0,63095.0,0.001]
[1724719618526,0.158486,63097.0,63095.0,0.001]
[1724719619349,0.158486,63097.0,63094.0,0.158492]
[1724719619764,0.316964,63099.0,63094.0,0.158492]
[1724719619765,0.158483,63098.0,63094.0,0.158492]
[1724719619968,0.316953,63101.0,63095.0,0.16049]
[1724719620099,0.316953,63101.0,63096.0,0.302688]
[1724719620461,0.158476,63101.0,63096.0,0.302687]
[1724719620876,0.158473,63102.0,63097.0,0.158485]
[1724719621074,0.158476,63101.0,63096.0,0.1442]
[1724719621304,0.158476,63101.0,63096.0,0.303686]
[1724719622122,0.159476,63101.0,63096.0,0.303686]
[1724719622323,0.159476,63101.0,63097.0,0.158485]
[1724719622324,0.158476,63101.0,63097.0,0.158485]
[1724719622731,0.159476,63101.0,63097.0,0.158485]
[1724719623140,0.001,63101.0,63099.0,0.15848]
[1724719623624,0.158471,63103.0,63099.0,0.15848]
[1724719623848,0.001,63101.0,63099.0,0.15848]
[1724719624367,0.001,63101.0,63099.0,0.15948]
[1724719625047,0.11129114,63102.0,63100.0,0.158478]
[1724719625920,0.11129114,63102.0,63099.0,0.15848]
[1724719626120,0.11129114,63102.0,63099.0,0.15948]
[1724719626574,0.11129114,63102.0,63099.0,0.15848]
[1724719626760,0.11129114,63102.0,63097.0,0.316969]
[1724719626983,0.11129114,63102.0,63100.0,0.158477]
[1724719627164,0.11129114,63102.0,63101.0,0.158476]
[1724719628048,0.11129114,63102.0,63100.0,0.158478]
[1724719628796,0.11129114,63102.0,63101.0,0.158476]
[1724719629270,0.2945972,63105.0,63101.0,0.158476]
[1724719631782,0.2955972,63105.0,63101.0,0.158476]
[1724719633297,0.158468,63104.0,63101.0,0.158476]
[1724719633703,0.2955982,63105.0,63101.0,0.158476]
[1724719636475,0.2955982,63105.0,63102.0,0.158473]
[1724719636764,0.15847,63104.0,63098.0,0.316965]
[1724719637104,0.15847,63104.0,63100.0,0.158477]
[1724719638093,0.15847,63104.0,63101.0,0.158475]
[1724719639260,0.15847,63104.0,63099.0,0.316959]
[1724719639261,0.15947,63104.0,63100.0,0.158478]
[1724719641075,0.15847,63104.0,63100.0,0.158478]
[1724719641282,0.15947,63104.0,63100.0,0.158478]
[1724719641496,0.15847,63104.0,63100.0,0.158478]
[1724719641943,0.15947,63104.0,63100.0,0.158478]
[1724719645439,0.20699694,63104.0,63100.0,0.158478]
[1724719647046,0.31828808,63104.0,63100.0,0.158478]
[1724719647266,0.158471,63103.0,63100.0,0.158478]
[1724719649295,0.31728608,63104.0,63100.0,0.158478]
[1724719649916,0.04752694,63103.0,63100.0,0.158478]
[1724719650349,0.04752694,63103.0,63101.0,0.158475]
[1724719650822,0.04752694,63103.0,63099.0,0.316959]
[1724719650823,0.26975914,63104.0,63100.0,0.158478]
[1724719651021,0.04757047,63103.0,63100.0,0.158478]
[1724719651264,0.04757047,63103.0,63099.0,0.316959]
[1724719651265,0.15886161,63104.0,63101.0,0.158474]
[1724719651491,0.15986161,63104.0,63101.0,0.158474]
[1724719652230,0.04757047,63103.0,63101.0,0.158474]
[1724719652429,0.31733061,63104.0,63101.0,0.158474]
[1724719652705,0.04757047,63103.0,63101.0,0.158474]
[1724719652907,0.31833061,63104.0,63100.0,0.158478]
[1724719653126,0.04757047,63103.0,63100.0,0.158478]
[1724719653246,0.04757047,63103.0,63101.0,0.158476]
[1724719653442,0.04757047,63103.0,63100.0,0.158476]
[1724719653651,0.04757047,63102.0,63100.0,0.158476]
[1724719654500,0.04757047,63101.0,63100.0,0.158476]
[1724719655227,0.04757047,63102.0,63101.0,0.158476]
[1724719655868,0.04758182,63102.0,63101.0,0.158476]
[1724719656626,0.04758182,63102.0,63101.0,0.159476]
[1724719657480,0.04758182,63102.0,63101.0,0.002]
[1724719659025,0.52300182,63102.0,63101.0,0.002]
[1724719659357,0.158473,63102.0,63101.0,0.002]
[1724719659492,0.47542,63102.0,63101.0,0.002]
[1724719659883,0.52300486,63102.0,63101.0,0.002]
[1724719660543,0.52300478,63102.0,63101.0,0.002]
[1724719660927,1.29910514,63102.0,63101.0,0.002]
[1724719661129,1.36530514,63102.0,63101.0,0.002]
[1724719661330,1.50804302,63102.0,63101.0,0.002]
[1724719661527,1.36530514,63102.0,63101.0,0.002]
[1724719661927,0.792417,63098.0,63097.0,0.000824]
[1724719662151,0.90370814,63098.0,63097.0,0.000824]
[1724719662360,0.47545,63098.0,63097.0,0.149024]
[1724719662719,0.54680121,63098.0,63097.0,0.149024]
[1724719662898,0.22983421,63098.0,63097.0,0.149024]
[1724719663658,0.20604808,63098.0,63097.0,0.149024]
[1724719664060,0.158483,63098.0,63097.0,0.15456671]
[1724719664508,0.159483,63098.0,63097.0,0.15456671]
[1724719664866,0.158483,63098.0,63097.0,0.15456671]
[1724719665699,0.159483,63098.0,63097.0,0.15456671]
[1724719666648,0.001,63098.0,63097.0,0.15456671]
[1724719667281,0.90470814,63098.0,63097.0,0.000824]
[1724719667483,0.90370814,63098.0,63097.0,0.000824]
[1724719667818,0.97605266,63098.0,63097.0,0.000824]
[1724719668264,0.65808566,63098.0,63097.0,0.000824]
[1724719668466,0.58774114,63098.0,63097.0,0.000824]
[1724719669253,0.58674114,63098.0,63097.0,0.083024]
[1724719670680,0.58774114,63098.0,63097.0,0.083024]
[1724719670908,0.58674114,63098.0,63097.0,0.083024]
[1724719671275,0.58674114,63098.0,63097.0,0.000824]
[1724719671883,0.90370814,63098.0,63097.0,0.000824]
[1724719672110,0.90470814,63098.0,63097.0,0.000824]
[1724719672542,0.99983417,63098.0,63097.0,0.000824]
[1724719672702,0.97603173,63098.0,63097.0,0.000824]
[1724719673083,0.90470814,63098.0,63097.0,0.000824]
[1724719673282,0.98320814,63098.0,63097.0,0.000824]
[1724719673701,1.36637514,63098.0,63097.0,0.000824]
[1724719673882,1.46147398,63098.0,63097.0,0.000824]
[1724719674080,1.36637514,63098.0,63097.0,0.000824]
[1724719675052,1.46146229,63098.0,63097.0,0.000824]
[1724719675184,1.46146363,63098.0,63097.0,0.000824]
[1724719675388,1.36637514,63098.0,63097.0,0.000824]
[1724719675810,1.43768381,63098.0,63097.0,0.000824]
[1724719676010,1.46146363,63098.0,63097.0,0.000824]
[1724719676231,1.36637514,63098.0,63097.0,0.000824]
[1724719676761,1.22167514,63098.0,63097.0,0.000824]
[1724719676964,1.110384,63098.0,63097.0,0.144024]
[1724719677190,1.22167514,63098.0,63097.0,0.144024]
[1724719677483,0.52398165,63098.0,63097.0,0.144024]
[1724719677901,0.159483,63098.0,63097.0,0.144024]
[1724719678320,0.158483,63098.0,63097.0,0.144024]
[1724719678525,0.159483,63098.0,63097.0,0.144024]
[1724719678990,0.158483,63098.0,63097.0,0.144024]
[1724719679379,0.27077414,63098.0,63097.0,0.144024]
[1724719680819,0.58774114,63098.0,63097.0,0.144024]
[1724719681342,0.90470814,63098.0,63097.0,0.000824]
[1724719681478,1.22167514,63098.0,63097.0,0.000824]
[1724719681687,1.29297203,63098.0,63097.0,0.000824]
[1724719682330,1.29297431,63098.0,63097.0,0.000824]
[1724719683490,1.26920591,63098.0,63097.0,0.000824]
[1724719683712,1.26920603,63098.0,63097.0,0.000824]
[1724719683922,1.22167514,63098.0,63097.0,0.000824]
[1724719684352,1.29297431,63098.0,63097.0,0.000824]
[1724719684762,1.22167514,63098.0,63097.0,0.000824]
[1724719684964,1.29297431,63098.0,63097.0,0.000824]
[1724719685384,1.22167514,63098.0,63097.0,0.000824]
[1724719693380,1.2465125,63098.0,63097.0,0.000824]
[1724719693690,1.69006637,63098.0,63097.0,0.000824]
[1724719693884,1.88695751,63098.0,63097.0,0.000824]
[1724719694091,1.86212015,63098.0,63097.0,0.000824]
[1724719694519,2.33521883,63098.0,63097.0,0.000824]
[1724719694700,0.27078914,63092.0,63091.0,0.000824]
[1724719694871,0.91026415,63092.0,63091.0,0.000824]
[1724719695090,2.17825215,63092.0,63091.0,0.000824]
[1724719695908,2.27825215,63092.0,63091.0,0.000824]
[1724719696113,1.570831,63090.0,63088.0,0.000823]
[1724719696306,1.75000901,63090.0,63088.0,0.000823]
[1724719696859,1.77485489,63090.0,63088.0,0.000823]
[1724719697066,2.09186189,63090.0,63088.0,0.000823]
[1724719697294,2.79186189,63090.0,63088.0,0.000823]
[1724719697493,0.001,63089.0,63088.0,0.000823]
[1724719697673,0.001,63089.0,63079.0,0.000823]
[1724719697674,0.41411914,63080.0,63079.0,0.000823]
[1724719697868,1.20441115,63080.0,63079.0,0.000823]
[1724719698054,1.86152515,63080.0,63079.0,0.000823]
[1724719698459,1.8863727,63080.0,63079.0,0.000823]
[1724719698890,1.8883727,63080.0,63079.0,0.001823]
[1724719699960,1.9023727,63080.0,63079.0,0.001823]
[1724719700167,1.9003727,63080.0,63079.0,0.000823]
[1724719700371,1.8863727,63080.0,63079.0,0.000823]
[1724719700829,1.9003727,63080.0,63079.0,0.000823]
[1724719701446,1.8863727,63080.0,63079.0,0.000823]
[1724719701733,1.9003727,63080.0,63079.0,0.000823]
[1724719702189,1.5197157,63080.0,63079.0,0.000823]
[1724719702343,1.4400157,63080.0,63079.0,0.000823]
[1724719702929,1.4540157,63080.0,63079.0,0.000823]
[1724719703085,1.4400157,63080.0,63079.0,0.000823]
[1724719703281,1.4260157,63080.0,63079.0,0.000823]
[1724719703483,1.4400157,63080.0,63079.0,0.000823]
[1724719703688,1.4540157,63080.0,63079.0,0.000823]
[1724719704290,1.4400157,63080.0,63079.0,0.000823]
[1724719704517,1.4540157,63080.0,63079.0,0.000823]
[1724719704808,1.4530157,63080.0,63079.0,0.000823]
[1724719705059,1.4390157,63080.0,63079.0,0.000823]
[1724719705251,1.4390157,63080.0,63079.0,0.001823]
[1724719705252,1.4530157,63080.0,63079.0,0.001823]
[1724719705484,1.25983769,63080.0,63079.0,0.000823]
[1724719705882,1.25983769,63080.0,63079.0,0.001823]
[1724719706234,1.27283769,63080.0,63079.0,0.001823]
[1724719712956,1.27283769,63080.0,63079.0,0.080523]
[1724719713288,1.24799014,63080.0,63079.0,0.080523]
[1724719714815,1.27283707,63080.0,63079.0,0.080523]
[1724719719742,1.27283707,63080.0,63079.0,0.001823]
[1724719720165,1.98038625,63080.0,63079.0,0.001823]
[1724719720365,1.90937208,63080.0,63079.0,0.001823]
[1724719720566,2.00412308,63080.0,63079.0,0.001823]
[1724719720769,1.98043577,63080.0,63079.0,0.001823]
[1724719721608,1.73568094,63080.0,63079.0,0.001823]
[1724719721759,1.77007208,63080.0,63079.0,0.001823]
[1724719722511,1.81745686,63080.0,63079.0,0.001823]
[1724719722623,1.77007208,63080.0,63079.0,0.001823]
[1724719722824,1.84113577,63080.0,63079.0,0.001823]
[1724719723195,1.77007208,63080.0,63079.0,0.001823]
[1724719723490,1.86486738,63080.0,63079.0,0.001823]
[1724719723692,1.86487248,63080.0,63079.0,0.001823]
[1724719723896,1.77007208,63080.0,63079.0,0.001823]
[1724719724127,1.86487248,63080.0,63079.0,0.001823]
[1724719725249,1.77007208,63080.0,63079.0,0.001823]
[1724719725423,1.86493588,63080.0,63079.0,0.001823]
[1724719725823,1.77007208,63080.0,63079.0,0.001823]
[1724719726028,1.88842903,63080.0,63079.0,0.001823]
[1724719726405,1.77007208,63080.0,63079.0,0.001823]
[1724719727668,1.91210022,63080.0,63079.0,0.001823]
[1724719728788,2.61210022,63080.0,63079.0,0.001823]
[1724719729322,2.47007208,63080.0,63079.0,0.001823]
[1724719731070,2.54697208,63080.0,63079.0,0.001823]
[1724719731895,2.96402908,63080.0,63079.0,0.001823]
[1724719732096,1.567169,63075.0,63074.0,0.00824]
[1724719732296,0.001,63059.0,63055.0,0.0634]
[1724719732502,1.02308448,63056.0,63055.0,0.0634]
[1724719732695,0.90423614,63056.0,63055.0,0.0634]
[1724719732894,1.22141414,63056.0,63055.0,0.0634]
[1724719733288,1.110158,63054.0,63053.0,0.0787]
[1724719733562,1.229011,63054.0,63053.0,0.0787]
[1724719733764,1.110158,63054.0,63053.0,0.0787]
[1724719734903,1.18141105,63054.0,63053.0,0.0787]
[1724719735673,1.15864662,63054.0,63053.0,0.0787]
[1724719735862,1.15964662,63054.0,63053.0,0.0787]
[1724719736003,1.15964662,63054.0,63053.0,0.079524]
[1724719736614,1.112158,63054.0,63053.0,0.079524]
[1724719739098,1.22344914,63054.0,63053.0,0.144424]
[1724719740262,1.22344914,63054.0,63053.0,0.141724]
[1724719740481,0.90626114,63054.0,63053.0,0.141724]
[1724719742961,0.477782,63054.0,63053.0,0.141724]
[1724719743171,0.160594,63054.0,63053.0,0.141724]
[1724719743793,0.27188514,63054.0,63053.0,0.141724]
[1724719743995,0.90626114,63054.0,63053.0,0.141724]
[1724719744629,1.22344914,63054.0,63053.0,0.141724]
[1724719745053,0.477782,63054.0,63053.0,0.141724]
[1724719747532,0.002,63054.0,63053.0,0.141724]
[1724719748128,0.160594,63054.0,63053.0,0.141724]
[1724719751162,0.002,63054.0,63053.0,0.141724]
[1724719752174,0.477782,63054.0,63053.0,0.141724]
[1724719752348,0.79497,63054.0,63053.0,0.141724]
[1724719756299,0.79497,63054.0,63053.0,0.065724]
[1724719756910,1.112158,63054.0,63053.0,0.065724]
[1724719760840,0.79497,63054.0,63053.0,0.065724]
[1724719761045,0.477782,63054.0,63053.0,0.143924]
[1724719761655,0.160594,63054.0,63053.0,0.143924]
[1724719762089,0.002,63054.0,63053.0,0.143924]
[1724719763580,0.160594,63054.0,63053.0,0.143924]
[1724719764867,0.002,63054.0,63053.0,0.143924]
[1724719768383,0.002,63054.0,63053.0,0.14943731]
[1724719768929,0.160594,63054.0,63053.0,0.14943731]
[1724719770224,0.477782,63054.0,63053.0,0.143924]
[1724719770401,0.52525429,63054.0,63053.0,0.143924]
[1724719770603,0.477782,63054.0,63053.0,0.143924]
[1724719770770,0.79497,63054.0,63053.0,0.143924]
[1724719771647,0.88991459,63054.0,63053.0,0.143924]
[1724719772837,0.88991459,63054.0,63053.0,0.000824]
[1724719773513,0.79497,63054.0,63053.0,0.000824]
[1724719774626,0.91365074,63054.0,63053.0,0.000824]
[1724719775420,0.79497,63054.0,63053.0,0.000824]
[1724719775582,0.913907,63054.0,63053.0,0.000824]
[1724719776201,0.89013013,63054.0,63053.0,0.000824]
[1724719776577,0.25575696,63054.0,63053.0,0.145424]
[1724719776754,0.57294496,63054.0,63053.0,0.145424]
[1724719778902,0.477782,63054.0,63053.0,0.145424]
[1724719779096,0.5491761,63054.0,63053.0,0.145424]
[1724719779329,0.477782,63054.0,63053.0,0.145424]
[1724719779925,0.5491761,63054.0,63053.0,0.145424]
[1724719780292,0.477782,63054.0,63053.0,0.145424]
[1724719780688,0.5491761,63054.0,63053.0,0.145424]
[1724719781056,0.477782,63054.0,63053.0,0.145424]
[1724719782296,0.160594,63054.0,63053.0,0.145424]
[1724719782648,0.2319881,63054.0,63053.0,0.145424]
[1724719783043,0.5491761,63054.0,63053.0,0.145424]
[1724719783246,0.2319881,63054.0,63053.0,0.145424]
[1724719785435,0.23200094,63054.0,63053.0,0.145424]
[1724719785666,0.160594,63054.0,63053.0,0.145424]
[1724719786171,0.23200169,63054.0,63053.0,0.145424]
[1724719787110,0.07340769,63054.0,63053.0,0.145424]
[1724719787314,0.07340769,63054.0,63053.0,0.77739101]
[1724719787315,0.002,63054.0,63053.0,0.77739101]
[1724719787515,0.002,63054.0,63053.0,1.09458401]
[1724719787719,0.002,63054.0,63053.0,1.41177701]
[1724719788126,0.04760372,63068.0,63067.0,0.1446]
[1724719788530,0.04851012,63069.0,63067.0,0.1446]
[1724719789348,0.0009064,63069.0,63067.0,0.1446]
[1724719789549,0.005,63068.0,63067.0,0.30316]
[1724719790661,0.005,63068.0,63067.0,0.620283]
[1724719790836,0.005,63068.0,63067.0,0.621283]
[1724719791388,0.0129064,63069.0,63068.0,0.475677]
[1724719791389,0.0009064,63069.0,63068.0,0.475677]
[1724719791614,0.0009064,63069.0,63068.0,0.620277]
[1724719792531,0.0009064,63069.0,63068.0,0.937395]
[1724719792723,0.0009064,63069.0,63068.0,0.938395]
[1724719792931,0.0079064,63069.0,63068.0,0.938395]
[1724719793593,0.0079064,63069.0,63068.0,0.621277]
[1724719793797,0.0129064,63069.0,63068.0,0.621277]
[1724719794215,0.0079064,63069.0,63068.0,0.621277]
[1724719794545,0.0009064,63069.0,63068.0,0.620277]
[1724719794952,0.0009064,63069.0,63065.0,0.0652]
[1724719795155,0.0009064,63069.0,63054.0,0.317185]
[1724719795156,0.11129114,63067.0,63059.0,0.1446]
[1724719795352,0.0009064,63069.0,63059.0,0.1446]
[1724719795353,0.158574,63062.0,63059.0,0.1446]
[1724719795553,0.158577,63061.0,63059.0,0.1446]
[1724719795934,0.11129114,63064.0,63059.0,0.1446]
[1724719796149,0.158573,63063.0,63059.0,0.1446]
[1724719796860,0.158575,63062.0,63059.0,0.1446]
[1724719799120,0.159575,63062.0,63059.0,0.1446]
[1724719800992,0.158576,63061.0,63059.0,0.1446]
[1724719801365,0.15838517,63061.0,63059.0,0.1446]
[1724719802635,0.158574,63062.0,63059.0,0.1446]
[1724719802839,0.317128,63066.0,63059.0,0.1446]
[1724719803042,0.158575,63062.0,63059.0,0.1446]
[1724719803238,0.158575,63062.0,63059.0,0.1456]
[1724719803469,0.158576,63061.0,63059.0,0.1456]
[1724719803666,0.317143,63063.0,63059.0,0.1456]
[1724719803875,0.158579,63060.0,63059.0,0.1456]
[1724719804016,0.158577,63061.0,63059.0,0.1456]
[1724719804213,0.317148,63062.0,63059.0,0.1446]
[1724719804419,0.158579,63060.0,63059.0,0.1446]
[1724719804619,0.317153,63061.0,63057.0,0.00552773]
[1724719804817,0.158584,63058.0,63056.0,0.143]
[1724719805022,1.110053,63060.0,63059.0,0.001]
[1724719805632,1.30052368,63060.0,63059.0,0.001]
[1724719805833,1.253053,63060.0,63059.0,0.001]
[1724719806060,1.40923101,63060.0,63059.0,0.001]
[1724719806478,1.72738901,63060.0,63059.0,0.001]
[1724719806676,1.86906571,63060.0,63059.0,0.001]
[1724719806883,1.75038901,63060.0,63059.0,0.001]
[1724719807326,1.253158,63054.0,63053.0,0.000824]
[1724719807534,1.48056552,63054.0,63053.0,0.000824]
[1724719807748,1.40933601,63054.0,63053.0,0.000824]
[1724719807954,1.50542389,63054.0,63053.0,0.000824]
[1724719808166,1.50541897,63054.0,63053.0,0.000824]
[1724719808629,1.43419381,63054.0,63053.0,0.000824]
[1724719808859,1.43719381,63054.0,63053.0,0.000824]
[1724719809048,1.48467327,63054.0,63053.0,0.000824]
[1724719809278,1.43719381,63054.0,63053.0,0.000824]
[1724719809855,1.43919381,63054.0,63053.0,0.000824]
[1724719810261,1.29619381,63054.0,63053.0,0.000824]
[1724719810414,1.34366755,63054.0,63053.0,0.000824]
[1724719810618,1.29619381,63054.0,63053.0,0.000824]
[1724719810818,1.34366755,63054.0,63053.0,0.000824]
[1724719811020,1.29619381,63054.0,63053.0,0.000824]
[1724719811409,1.3673996,63054.0,63053.0,0.000824]
[1724719811600,1.29619381,63054.0,63053.0,0.000824]
[1724719811810,1.29719381,63054.0,63053.0,0.000824]
[1724719812256,1.36839521,63054.0,63053.0,0.000824]
[1724719812468,1.29719381,63054.0,63053.0,0.000824]
[1724719812681,1.36839185,63054.0,63053.0,0.000824]
[1724719813245,1.29719381,63054.0,63053.0,0.000824]
[1724719813447,1.36839185,63054.0,63053.0,0.000824]
[1724719813690,1.44649185,63054.0,63053.0,0.000824]
[1724719814075,1.44648091,63054.0,63053.0,0.000824]
[1724719815141,1.50728091,63054.0,63053.0,0.000824]
[1724719815946,1.82446891,63054.0,63053.0,0.000824]
[1724719816173,1.84746891,63054.0,63053.0,0.000824]
[1724719816525,1.84546891,63054.0,63053.0,0.000824]
[1724719816774,1.85846891,63054.0,63053.0,0.000824]
[1724719817306,1.86616924,63054.0,63053.0,0.000824]
[1724719817538,2.19635724,63054.0,63053.0,0.000824]
[1724719817690,2.11546981,63054.0,63053.0,0.000824]
[1724719817891,2.10146981,63054.0,63053.0,0.000824]
[1724719818148,2.30787896,63054.0,63053.0,0.000824]
[1724719818355,2.32187896,63054.0,63053.0,0.000824]
[1724719818659,2.22699453,63054.0,63053.0,0.000824]
[1724719819204,2.21399453,63054.0,63053.0,0.000824]
[1724719819811,2.19999453,63054.0,63053.0,0.000824]
[1724719820218,2.22699453,63054.0,63053.0,0.000824]
[1724719821303,2.46932567,63054.0,63053.0,0.000824]
[1724719821505,3.02699453,63054.0,63053.0,0.000824]
[1724719821901,3.02699453,63054.0,63037.0,0.00824]
[1724719821902,1.489506,63038.0,63037.0,0.00824]
[1724719822091,1.90644712,63038.0,63037.0,0.00824]
[1724719822344,1.83530873,63038.0,63037.0,0.00824]
[1724719822552,1.85830873,63038.0,63037.0,0.00824]
[1724719822701,1.97687272,63038.0,63037.0,0.00824]
[1724719823177,1.95308889,63038.0,63037.0,0.00824]
[1724719823493,2.27035689,63038.0,63037.0,0.00824]
[1724719823723,2.28957673,63038.0,63037.0,0.00824]
[1724719823953,2.43300577,63038.0,63037.0,0.00824]
[1724719824170,2.52774138,63038.0,63037.0,0.00824]
[1724719824433,2.52774138,63038.0,63035.0,0.00824]
[1724719824434,1.806834,63036.0,63035.0,0.00824]
[1724719824649,2.16411201,63036.0,63035.0,0.00824]
[1724719824895,2.16411201,63036.0,63033.0,0.00824]
[1724719824896,1.5677,63034.0,63033.0,0.00824]
[1724719825101,1.95840273,63034.0,63033.0,0.00824]
[1724719825511,2.39404081,63034.0,63033.0,0.00824]
[1724719826121,2.53785047,63034.0,63033.0,0.00824]
[1724719826670,2.58197017,63034.0,63033.0,0.00824]
[1724719827067,2.52815612,63034.0,63033.0,0.00824]
[1724719827486,2.54215612,63034.0,63033.0,0.00824]
[1724719827952,2.47121752,63034.0,63033.0,0.00824]
[1724719830498,2.47121752,63034.0,63027.0,0.00824]
[1724719830499,0.001,63016.0,63015.0,0.00824]
[1724719830819,2.01113352,63016.0,63015.0,0.00824]
[1724719831031,2.03413352,63016.0,63015.0,0.00824]
[1724719831523,2.15900766,63016.0,63015.0,0.00824]
[1724719831958,1.42987815,63016.0,63015.0,0.00824]
[1724719832618,1.44287815,63016.0,63015.0,0.00824]
[1724719832821,1.31887815,63016.0,63015.0,0.00824]
[1724719833085,1.30587815,63016.0,63015.0,0.00824]
[1724719833198,1.32987815,63016.0,63015.0,0.00824]
[1724719833400,1.34187815,63016.0,63015.0,0.00824]
[1724719833614,1.35587815,63016.0,63015.0,0.00824]
[1724719833836,1.64525715,63016.0,63015.0,0.00824]
[1724719834243,1.65825715,63016.0,63015.0,0.00824]
[1724719834485,1.64525715,63016.0,63015.0,0.00824]
[1724719834687,1.63325715,63016.0,63015.0,0.00824]
[1724719834937,1.75825715,63016.0,63015.0,0.00824]
[1724719835150,1.74425715,63016.0,63015.0,0.00824]
[1724719835633,1.74725715,63016.0,63015.0,0.00824]
[1724719835924,1.76125715,63016.0,63015.0,0.00824]
[1724719836335,1.74725715,63016.0,63015.0,0.00824]
[1724719836474,1.76125715,63016.0,63015.0,0.00824]
[1724719836676,1.74725715,63016.0,63015.0,0.00824]
[1724719836874,1.76125715,63016.0,63015.0,0.00824]
[1724719837297,1.42987815,63016.0,63015.0,0.00824]
[1724719837496,1.44387815,63016.0,63015.0,0.00824]
[1724719837949,1.41587815,63016.0,63015.0,0.00824]
[1724719838156,1.44387815,63016.0,63015.0,0.00824]
[1724719838621,1.41587815,63016.0,63015.0,0.00824]
[1724719838832,1.65310983,63016.0,63015.0,0.00824]
[1724719839046,1.89395715,63016.0,63015.0,0.00824]
[1724719839544,1.87995715,63016.0,63015.0,0.00824]
[1724719839905,1.89395715,63016.0,63015.0,0.00824]
[1724719840111,1.87995715,63016.0,63015.0,0.00824]
[1724719840482,1.89395715,63016.0,63015.0,0.00824]
[1724719840886,1.90795715,63016.0,63015.0,0.00824]
[1724719841288,2.06408883,63016.0,63015.0,0.00824]
[1724719841493,2.38146783,63016.0,63015.0,0.00824]
[1724719842023,2.36746783,63016.0,63015.0,0.00824]
[1724719842218,3.08146783,63016.0,63015.0,0.00824]
[1724719842394,2.38146783,63016.0,63015.0,0.00824]
[1724719842596,2.36746783,63016.0,63015.0,0.00824]
[1724719842919,2.35346783,63016.0,63015.0,0.00824]
[1724719843119,2.36746783,63016.0,63015.0,0.00824]
[1724719843465,2.35346783,63016.0,63015.0,0.00824]
[1724719844001,2.36746783,63016.0,63015.0,0.00824]
[1724719844173,2.06408883,63016.0,63015.0,0.00824]
[1724719844496,1.74725715,63016.0,63015.0,0.00824]
[1724719844904,1.76125715,63016.0,63015.0,0.00824]
[1724719845290,1.74706618,63016.0,63015.0,0.00824]
[1724719845742,1.76106618,63016.0,63015.0,0.00824]
[1724719846073,2.44706618,63016.0,63015.0,0.00824]
[1724719846253,1.76106618,63016.0,63015.0,0.00824]
[1724719847080,1.73306618,63016.0,63015.0,0.00824]
[1724719847420,1.74706618,63016.0,63015.0,0.00824]
[1724719847624,1.73306618,63016.0,63015.0,0.00824]
[1724719847854,2.22057686,63016.0,63015.0,0.00824]
[1724719848064,1.78944551,63012.0,63011.0,0.0004]
[1724719848236,2.06862352,63012.0,63011.0,0.0004]
[1724719848443,2.38602252,63012.0,63011.0,0.0004]
[1724719849004,2.45162252,63012.0,63011.0,0.0004]
[1724719850275,2.46562252,63012.0,63011.0,0.0004]
[1724719850490,2.47962252,63012.0,63011.0,0.0004]
[1724719851278,2.47962252,63012.0,63011.0,0.001225]
[1724719851279,2.22131366,63012.0,63011.0,0.001225]
[1724719851679,2.14021366,63012.0,63011.0,0.001225]
[1724719852293,2.01552352,63012.0,63011.0,0.001225]
[1724719853570,2.01552352,63012.0,63011.0,0.066525]
[1724719853733,2.71552352,63012.0,63011.0,0.066525]
[1724719855355,2.01552352,63012.0,63011.0,0.066525]
[1724719855557,2.01552352,63012.0,63011.0,0.001225]
[1724719855936,2.1716552,63012.0,63011.0,0.001225]
[1724719856139,2.3100552,63012.0,63011.0,0.001225]
[1724719856369,2.15392352,63012.0,63011.0,0.001225]
[1724719856550,2.09172352,63012.0,63011.0,0.001225]
[1724719857341,2.01552352,63012.0,63011.0,0.001225]
[1724719859326,2.01552352,63012.0,63011.0,0.143525]
[1724719859726,2.01552352,63012.0,63011.0,0.001225]
[1724719860840,2.19176108,63012.0,63011.0,0.001225]
[1724719861038,2.07772352,63012.0,63011.0,0.001225]
[1724719862218,2.39512252,63012.0,63011.0,0.001225]
[1724719864248,2.51337999,63012.0,63011.0,0.001225]
[1724719865196,2.39512252,63012.0,63011.0,0.001225]
[1724719865429,0.001,62997.0,62981.0,0.00551245]
[1724719865629,0.001,62997.0,62974.0,0.0652]
[1724719865630,0.476379,62975.0,62974.0,0.0652]
[1724719865837,0.158793,62975.0,62974.0,0.1423]
[1724719866035,0.04743953,62990.0,62954.0,0.46876099]
[1724719866036,0.158783,62979.0,62976.0,0.0771]
[1724719866234,0.001,62987.0,62977.0,0.1423]
[1724719866235,0.158785,62978.0,62977.0,0.1423]
[1724719866643,0.476356,62978.0,62977.0,0.1423]
[1724719867284,1.26767601,62978.0,62977.0,0.1423]
[1724719868228,1.26867601,62978.0,62977.0,0.1423]
[1724719868477,1.70924701,62978.0,62977.0,0.1423]
[1724719869171,1.430159,62974.0,62973.0,0.1426]
[1724719869377,1.96538752,62974.0,62973.0,0.1426]
[1724719869606,1.96538752,62974.0,62973.0,0.0003]
[1724719869813,1.98838752,62974.0,62973.0,0.0003]
[1724719870607,2.00138752,62974.0,62973.0,0.0003]
[1724719870780,2.07248912,62974.0,62973.0,0.0003]
[1724719870980,2.5332118,62974.0,62973.0,0.0003]
[1724719871206,2.4621102,62974.0,62973.0,0.0003]
[1724719871403,2.1119844,62974.0,62973.0,0.0003]